bitfinex/quotes_SOLUSD_20240811
["timestamp","ask_amount","ask_price","bid_price","bid_amount"]
[1723392693223,4.7082,148.68,148.65,45.0]
[1723392693520,4.7078,148.69,148.65,49.709]
[1723392693722,21.3,148.73,148.67,4.7083]
[1723392693897,4.707,148.72,148.68,45.0]
[1723392694222,42.8213,148.75,148.68,45.0]
[1723392694546,4.7065,148.73,148.68,49.708]
[1723392694720,4.7069,148.72,148.68,45.0]
[1723392694900,4.7064,148.74,148.68,49.708]
[1723392695710,4.7065,148.73,148.68,49.708]
[1723392697396,20.0,148.75,148.68,45.0]
[1723392697719,26.63,148.71,148.63,16.067]
[1723392697898,4.7072,148.71,148.66,4.7084]
[1723392698401,4.7072,148.71,148.67,45.0]
[1723392698917,20.0,148.72,148.67,45.0]
[1723392699125,26.63,148.75,148.68,4.7078]
[1723392699305,4.7074,148.71,148.69,45.0]
[1723392699513,26.63,148.73,148.69,45.0]
[1723392699814,26.63,148.73,148.68,45.0]
[1723392700005,4.7075,148.7,148.68,45.0]
[1723392700423,4.7074,148.71,148.66,4.7087]
[1723392701705,4.7074,148.71,148.67,45.0]
[1723392702116,20.0,148.72,148.63,16.067]
[1723392702317,26.63,148.71,148.63,16.067]
[1723392702634,4.7081,148.68,148.63,20.7765]
[1723392702925,4.7091,148.65,148.6,4.7105]
[1723392703101,26.63,148.67,148.59,16.067]
[1723392703306,4.7093,148.65,148.61,4.7102]
[1723392703630,26.63,148.67,148.61,4.7102]
[1723392703920,4.7081,148.68,148.63,4.7096]
[1723392704127,24.7081,148.68,148.63,4.7096]
[1723392704708,4.7078,148.69,148.64,4.7092]
[1723392704915,4.7087,148.66,148.64,45.0]
[1723392705922,4.709,148.65,148.64,45.0]
[1723392706125,4.7089,148.66,148.62,4.7099]
[1723392706432,4.7084,148.67,148.62,4.7099]
[1723392706721,4.7084,148.67,148.63,4.7096]
[1723392706922,4.7087,148.66,148.59,16.067]
[1723392707313,4.709,148.65,148.6,50.21246]
[1723392707714,4.709,148.65,148.61,4.7102]
[1723392707906,4.709,148.65,148.62,45.0]
[1723392708723,20.0,148.68,148.62,49.7098]
[1723392708724,4.7084,148.67,148.62,49.7098]
[1723392708896,20.0,148.68,148.61,4.7102]
[1723392709925,20.0,148.68,148.6,1.34558089]
[1723392710124,20.0,148.68,148.61,0.12549]
[1723392710327,4.7088,148.66,148.6,45.12549]
[1723392710716,26.63,148.67,148.6,45.0]
[1723392710926,4.7094,148.64,148.59,16.067]
[1723392711127,4.709,148.65,148.6,4.7105]
[1723392711319,24.7088,148.66,148.61,4.7102]
[1723392711627,24.7088,148.66,148.6,4.7106]
[1723392711628,4.709,148.65,148.6,4.7106]
[1723392712122,4.709,148.65,148.61,45.0]
[1723392713532,4.709,148.65,148.61,49.7102]
[1723392713909,4.709,148.65,148.61,45.0]
[1723392714111,4.7097,148.63,148.61,45.0]
[1723392714319,4.7097,148.63,148.6,45.0]
[1723392714519,4.71,148.62,148.6,45.0]
[1723392714720,4.7106,148.6,148.55,16.0631]
[1723392714937,21.32,148.63,148.56,4.7118]
[1723392715110,4.7104,148.61,148.57,4.7115]
[1723392715933,4.7109,148.59,148.55,16.0631]
[1723392716115,21.32,148.63,148.56,1.34612739]
[1723392716936,4.7108,148.6,148.55,4.7119]
[1723392717633,16.0203,148.64,148.53,21.32]
[1723392717806,4.7102,148.62,148.57,4.7115]
[1723392718009,4.7102,148.62,148.58,4.7112]
[1723392718313,4.7103,148.61,148.59,45.0]
[1723392718713,4.7103,148.61,148.58,45.0]
[1723392718930,4.71,148.62,148.58,45.0]
[1723392719642,41.32,148.63,148.58,45.0]
[1723392719643,4.7103,148.61,148.58,45.0]
[1723392719824,4.71,148.62,148.58,45.0]
[1723392720137,4.709,148.65,148.6,4.7106]
[1723392720319,4.7087,148.66,148.61,51.05584468]
[1723392720518,4.7087,148.66,148.61,49.7102]
[1723392720941,4.709,148.65,148.61,49.7102]
[1723392721222,21.32,148.67,148.61,45.0]
[1723392721416,4.7094,148.64,148.61,45.0]
[1723392721630,4.7094,148.64,148.6,45.0]
[1723392722024,4.7094,148.64,148.6,49.7105]
[1723392722434,21.32,148.65,148.6,49.7105]
[1723392722435,4.7091,148.65,148.6,49.7105]
[1723392722645,4.7094,148.64,148.6,49.7105]
[1723392723027,4.7096,148.63,148.6,45.0]
[1723392723337,4.7094,148.64,148.6,49.7104]
[1723392723526,4.7091,148.65,148.6,49.7104]
[1723392723917,21.32,148.67,148.6,45.0]
[1723392724139,4.7095,148.64,148.59,49.96178]
[1723392724336,4.7099,148.63,148.59,45.0]
[1723392724512,4.7103,148.61,148.59,45.0]
[1723392724709,4.71,148.62,148.58,45.0]
[1723392724929,4.7097,148.63,148.58,49.7112]
[1723392726142,24.7094,148.64,148.59,6.05664692]
[1723392726338,4.7097,148.63,148.6,45.0]
[1723392726517,21.32,148.65,148.6,45.0]
[1723392726847,4.7097,148.63,148.59,45.0]
[1723392727321,4.71,148.62,148.57,4.7115]
[1723392727506,4.7103,148.61,148.57,4.7115]
[1723392727907,4.71,148.62,148.57,4.7115]
[1723392728426,4.7097,148.63,148.58,4.711]
[1723392728619,4.7097,148.63,148.59,45.0]
[1723392728822,24.7094,148.64,148.59,45.0]
[1723392729021,20.0,148.64,148.6,4.7105]
[1723392729236,26.0291,148.65,148.61,45.0]
[1723392729437,21.32,148.65,148.57,1.34578596]
[1723392729643,4.7094,148.64,148.59,4.7108]
[1723392729932,11.7715,148.67,148.59,4.7108]
[1723392729933,21.32,148.67,148.6,45.12549]
[1723392730138,21.32,148.67,148.61,4.7102]
[1723392730339,21.32,148.67,148.62,45.0]
[1723392730719,4.709,148.65,148.62,45.0]
[1723392730917,4.71,148.62,148.55,41.32]
[1723392731220,4.7103,148.61,148.57,4.7113]
[1723392731418,4.71,148.62,148.57,4.7113]
[1723392732421,4.7103,148.61,148.58,45.0]
[1723392732730,4.7107,148.6,148.56,4.7118]
[1723392732937,26.0304,148.61,148.56,4.7118]
[1723392733432,4.7106,148.6,148.56,4.7118]
[1723392734240,21.32,148.57,148.5,6.99000914]
[1723392734538,21.32,148.57,148.45,16.3411]
[1723392734539,4.7138,148.5,148.46,4.7149]
[1723392734721,21.32,148.53,148.46,1.346989]
[1723392734931,4.7132,148.52,148.47,4.7146]
[1723392735123,4.7132,148.52,148.48,4.7144]
[1723392735331,26.0329,148.53,148.48,4.7144]
[1723392735535,21.32,148.55,148.45,37.6611]
[1723392735841,15.5552,148.58,148.45,37.6611]
[1723392735842,4.7119,148.56,148.52,4.7129]
[1723392736041,4.7122,148.55,148.5,4.7135]
[1723392736219,4.7119,148.56,148.51,4.7133]
[1723392736419,26.0312,148.59,148.54,4.7124]
[1723392736612,20.0,148.58,148.48,21.32]
[1723392736818,26.0317,148.57,148.49,0.25098]
[1723392737244,21.32,148.59,148.49,66.59739777]
[1723392737419,26.0311,148.59,148.54,4.7124]
[1723392737748,26.0311,148.59,148.55,45.0]
[1723392737749,4.7113,148.58,148.55,45.0]
[1723392738040,4.7127,148.54,148.49,4.83949]
[1723392738244,4.7128,148.53,148.48,4.7143]
[1723392738415,4.7128,148.53,148.44,27.3601]
[1723392738416,26.0326,148.54,148.49,4.7141]
[1723392738615,21.32,148.54,148.49,4.7141]
[1723392738925,26.0332,148.52,148.47,4.7146]
[1723392739343,4.7135,148.51,148.46,4.7149]
[1723392739949,21.32,148.52,148.46,1.34694518]
[1723392740239,26.0328,148.54,148.49,4.7139]
[1723392741341,26.0328,148.54,148.5,45.0]
[1723392741646,21.32,148.54,148.5,45.0]
[1723392741842,4.7129,148.53,148.49,49.714]
[1723392742937,4.7129,148.53,148.49,45.0]
[1723392743448,4.7135,148.51,148.46,4.7148]
[1723392743644,4.7135,148.51,148.47,4.7146]
[1723392743957,4.7135,148.51,148.44,6.0401]
[1723392743958,26.7,148.51,148.44,4.7154]
[1723392744254,4.7142,148.49,148.44,4.7154]
[1723392745128,4.7142,148.49,148.45,4.7153]
[1723392745443,4.7145,148.48,148.43,4.7159]
[1723392745620,4.7145,148.48,148.41,22.3812]
[1723392745958,4.7145,148.48,148.44,4.7157]
[1723392746136,42.6934,148.55,148.44,26.7]
[1723392746451,4.7129,148.53,148.48,4.7144]
[1723392746621,4.7129,148.53,148.49,4.714]
[1723392746822,42.6934,148.55,148.48,4.7143]
[1723392747043,4.7132,148.52,148.44,0.12549]
[1723392747250,4.7132,148.52,148.47,4.7146]
[1723392747554,4.7132,148.52,148.48,45.0]
[1723392747764,23.5473,148.64,148.49,0.12549]
[1723392747765,15.9934,148.59,148.49,0.12549]
[1723392748050,15.9934,148.59,148.52,0.12549]
[1723392748226,15.9934,148.59,148.51,26.7]
[1723392748227,15.9934,148.59,148.49,43.16748]
[1723392748428,4.7121,148.56,148.51,4.7134]
[1723392748729,4.7121,148.56,148.5,45.25098]
[1723392748730,4.7121,148.56,148.52,49.7131]
[1723392748935,4.7116,148.57,148.52,49.7131]
[1723392749448,26.7,148.58,148.52,45.0]
[1723392749630,4.7115,148.58,148.53,4.7125]
[1723392749826,6.5619,148.61,148.54,45.0]
[1723392750151,4.712,148.56,148.54,45.0]
[1723392750346,4.712,148.56,148.51,4.83889]
[1723392750650,26.7,148.57,148.52,45.0]
[1723392750860,4.7122,148.55,148.5,4.7138]
[1723392751767,26.7,148.53,148.45,16.2165]
[1723392752066,4.7125,148.54,148.45,16.2165]
[1723392752254,20.0,148.54,148.45,44.26323644]
[1723392752562,20.0,148.54,148.45,4.7153]
[1723392752563,31.4137,148.51,148.45,4.7153]
[1723392752862,20.0,148.54,148.44,26.7]
[1723392753046,15.9934,148.56,148.46,26.7]
[1723392753249,20.7056,148.56,148.5,4.7137]
[1723392753428,20.7056,148.56,148.51,4.7134]
[1723392753629,33.2619,148.59,148.52,1.34653887]
[1723392753825,33.2619,148.59,148.5,0.12549]
[1723392753826,6.5619,148.59,148.5,0.12549]
[1723392754060,33.2619,148.59,148.5,45.50196]
[1723392754232,33.2619,148.59,148.51,4.7132]
[1723392754431,33.2619,148.59,148.52,45.0]
[1723392755350,4.7112,148.58,148.53,4.7127]
[1723392755555,4.7112,148.58,148.54,45.0]
[1723392755743,37.9729,148.59,148.54,45.0]
[1723392755938,10.54642613,148.64,148.57,4.7112]
[1723392755939,37.9718,148.63,148.57,4.7112]
[1723392756140,6.5619,148.63,148.58,45.0]
[1723392756344,6.5619,148.63,148.56,0.12549]
[1723392756661,11.2716,148.63,148.58,4.7111]
[1723392756836,11.2716,148.63,148.59,45.0]
[1723392757038,6.5619,148.63,148.59,45.0]
[1723392757245,4.7096,148.64,148.6,4.7106]
[1723392757448,4.7096,148.64,148.59,45.0]
[1723392757449,42.6934,148.65,148.59,45.0]
[1723392757759,4.7094,148.64,148.59,49.7108]
[1723392757933,4.7094,148.64,148.6,4.7106]
[1723392758131,4.7094,148.64,148.61,45.0]
[1723392758357,4.7094,148.64,148.59,49.7109]
[1723392758558,24.7094,148.64,148.59,49.7109]
[1723392758738,4.7097,148.63,148.59,49.7109]
[1723392759066,4.7103,148.61,148.59,45.0]
[1723392759242,4.7106,148.61,148.51,6.3631]
[1723392759569,4.7111,148.59,148.54,4.7122]
[1723392760156,31.4111,148.59,148.54,4.7122]
[1723392760368,31.4111,148.59,148.55,4.7121]
[1723392760664,26.7,148.61,148.56,4.7118]
[1723392760847,31.4103,148.61,148.51,33.0631]
[1723392761048,31.4097,148.63,148.58,4.7112]
[1723392762268,4.71,148.62,148.59,45.0]
[1723392762455,26.7,148.61,148.52,0.12549]
[1723392762638,4.7109,148.59,148.54,4.7124]
[1723392762838,4.7107,148.6,148.55,45.0]
[1723392764258,31.4103,148.61,148.55,45.0]
[1723392764454,26.7,148.61,148.55,45.0]
[1723392764666,31.4106,148.61,148.56,4.7118]
[1723392764979,4.7106,148.6,148.57,45.0]
[1723392765342,4.7106,148.6,148.56,45.0]
[1723392765746,4.7096,148.64,148.57,0.25098]
[1723392765955,4.7096,148.64,148.59,4.7108]
[1723392766152,4.7096,148.64,148.6,45.0]
[1723392767241,24.7096,148.64,148.6,45.0]
[1723392767445,26.7,148.65,148.62,4.7099]
[1723392767646,26.7,148.65,148.6,45.0]
[1723392767863,4.7094,148.64,148.6,45.0]
[1723392768348,4.7098,148.63,148.6,45.0]
[1723392768550,4.7098,148.63,148.58,4.83669]
[1723392768551,4.7093,148.64,148.59,49.7108]
[1723392769065,31.409,148.65,148.6,4.7105]
[1723392769269,26.7,148.65,148.61,49.7101]
[1723392769466,31.409,148.65,148.61,45.0]
[1723392770181,31.409,148.65,148.61,49.7102]
[1723392770547,26.7,148.65,148.61,49.7102]
[1723392770744,26.7,148.69,148.62,0.25098]
[1723392771044,265.3073,148.71,148.66,4.7086]
[1723392771268,4.7073,148.71,148.67,49.7083]
[1723392771450,47.9206,148.73,148.68,4.708]
[1723392771850,47.9206,148.73,148.67,45.0]
[1723392772052,26.7,148.71,148.63,0.25098]
[1723392772364,26.7,148.71,148.63,45.25098]
[1723392772689,26.7,148.71,148.64,0.12549]
[1723392772974,47.9206,148.73,148.67,4.7083]
[1723392773147,26.7,148.71,148.63,45.0]
[1723392773348,4.709,148.65,148.61,4.7102]
[1723392773575,4.7087,148.66,148.58,16.3938]
[1723392773867,26.7,148.69,148.64,4.709]
[1723392774177,24.7083,148.68,148.63,4.7095]
[1723392774479,20.0,148.68,148.64,4.7091]
[1723392774673,26.7,148.69,148.65,45.0]
[1723392774674,31.4079,148.69,148.65,45.0]
[1723392774970,31.4072,148.71,148.66,4.7087]
[1723392775173,31.4072,148.71,148.67,4.7083]
[1723392775174,26.7,148.71,148.67,4.7083]
[1723392775478,4.7071,148.71,148.67,4.7083]
[1723392775654,4.7071,148.71,148.66,4.7086]
[1723392776250,26.7,148.75,148.67,45.0]
[1723392776459,26.7,148.75,148.66,0.12549]
[1723392776651,26.7,148.75,148.67,4.7081]
[1723392776858,4.7069,148.72,148.68,45.0]
[1723392777091,4.7065,148.73,148.68,49.708]
[1723392777274,26.7,148.71,148.66,1.345013]
[1723392777447,26.7,148.71,148.6,6.1124]
[1723392777863,26.7,148.71,148.59,6.1124]
[1723392778076,26.7,148.69,148.59,6.1124]
[1723392778480,15.1798,148.72,148.61,26.7]
[1723392778654,15.1798,148.72,148.62,20.0]
[1723392778855,4.7067,148.73,148.68,4.708]
[1723392779060,24.7067,148.73,148.68,4.708]
[1723392779694,4.7068,148.72,148.67,4.7083]
[1723392779974,24.7068,148.72,148.68,45.0]
[1723392780154,4.7068,148.72,148.68,49.708]
[1723392780355,4.7092,148.65,148.6,4.7103]
[1723392780580,4.7095,148.64,148.55,6.1124]
[1723392780968,4.7091,148.65,148.6,4.7105]
[1723392781479,4.7087,148.66,148.56,26.7]
[1723392781670,26.7,148.68,148.58,43.0938]
[1723392781870,26.7,148.68,148.58,16.3938]
[1723392782091,4.7088,148.66,148.61,4.71]
[1723392782266,26.7,148.66,148.5,4.04147822]
[1723392782464,26.7,148.62,148.5,26.7]
[1723392783685,4.7103,148.61,148.56,4.7118]
[1723392784761,26.7,148.6,148.49,1.17027974]
[1723392785061,4.7115,148.58,148.49,1.17027974]
[1723392785266,26.7,148.58,148.49,1.17027974]
[1723392785471,26.7,148.56,148.47,22.5062]
[1723392785885,26.7,148.56,148.52,4.7131]
[1723392786770,31.4119,148.56,148.51,4.7134]
[1723392787487,31.4119,148.56,148.52,4.7131]
[1723392787695,26.7,148.56,148.52,4.7131]
[1723392788066,26.7,148.56,148.53,4.7128]
[1723392788273,26.7,148.56,148.44,6.99747354]
[1723392788473,26.7,148.54,148.48,4.7143]
[1723392788881,26.7,148.54,148.41,33.70333687]
[1723392789085,4.7124,148.55,148.43,26.7]
[1723392789285,24.7124,148.55,148.43,26.7]
[1723392789494,26.7,148.54,148.43,26.7]
[1723392789673,4.7131,148.53,148.48,4.7144]
[1723392790265,26.7,148.5,148.41,7.00333687]
[1723392790573,0.12549,148.51,148.37,10.55072501]
[1723392790574,46.7,148.49,148.37,10.55072501]
[1723392791175,4.7144,148.48,148.43,4.7159]
[1723392791485,26.7,148.53,148.47,4.7144]
[1723392791683,26.7,148.53,148.43,21.8094]
[1723392791684,26.7,148.53,148.49,4.714]
[1723392791887,4.7129,148.53,148.48,4.7143]
[1723392792187,26.7,148.55,148.5,4.7137]
[1723392792495,6.3576,148.56,148.5,4.7137]
[1723392792669,4.7116,148.57,148.53,4.7127]
[1723392792988,4.7116,148.57,148.52,4.713]
[1723392793493,4.7113,148.58,148.53,4.7127]
[1723392793679,4.7122,148.55,148.47,0.25098]
[1723392793884,4.7122,148.55,148.48,0.25098]
[1723392794299,26.7,148.59,148.52,4.713]
[1723392794300,4.7116,148.57,148.52,4.713]
[1723392794611,4.7116,148.57,148.53,45.0]
[1723392794968,20.0,148.58,148.53,45.0]
[1723392795164,26.7,148.61,148.59,4.7107]
[1723392795368,20.3276,148.62,148.57,4.7115]
[1723392795595,4.71,148.62,148.57,4.7115]
[1723392795803,4.7103,148.61,148.57,4.7115]
[1723392796000,26.7,148.6,148.51,15.4176]
[1723392796185,4.7112,148.59,148.54,4.7124]
[1723392796972,26.7,148.6,148.52,45.0]
[1723392797284,4.711,148.59,148.54,4.7122]
[1723392797489,31.4106,148.6,148.55,4.7121]
[1723392797699,4.711,148.59,148.54,4.7125]
[1723392798007,31.4112,148.58,148.53,4.7127]
[1723392798179,31.4112,148.58,148.54,4.7125]
[1723392798385,26.7,148.58,148.54,4.7125]
[1723392798703,31.4107,148.6,148.55,4.7122]
[1723392798876,4.711,148.59,148.54,4.7124]
[1723392799079,26.7,148.6,148.52,45.0]
[1723392799392,31.4108,148.6,148.55,4.7122]
[1723392799574,4.711,148.59,148.54,4.7124]
[1723392799779,26.7,148.6,148.54,4.7124]
[1723392799978,26.7,148.6,148.52,45.0]
[1723392800300,0.12549,148.61,148.52,45.0]
[1723392800301,4.7116,148.57,148.52,4.7131]
[1723392800888,4.712,148.56,148.51,4.7134]
[1723392801282,26.7,148.58,148.55,4.7119]
[1723392801483,20.0,148.59,148.55,4.7119]
[1723392801684,26.7,148.6,148.48,21.8094]
[1723392801994,26.7,148.58,148.48,21.8094]
[1723392802392,26.7,148.58,148.49,45.37647]
[1723392802582,4.7119,148.56,148.48,21.8094]
[1723392802788,4.7123,148.55,148.51,4.7134]
[1723392803494,26.7,148.56,148.48,21.8094]
[1723392803699,26.7,148.58,148.48,21.8094]
[1723392804009,24.7118,148.57,148.52,4.7129]
[1723392804393,26.7,148.56,148.48,21.8094]
[1723392804609,26.7,148.56,148.48,4.7142]
[1723392804610,4.713,148.53,148.48,4.7142]
[1723392805110,4.7128,148.53,148.49,4.714]
[1723392805988,4.7128,148.53,148.48,4.7143]
[1723392806313,4.7133,148.52,148.48,4.7143]
[1723392806491,0.12549,148.51,148.46,4.715]
[1723392806691,26.7,148.5,148.4,7.00389292]
[1723392806883,31.4138,148.5,148.46,4.715]
[1723392807079,26.7,148.5,148.46,4.715]
[1723392807284,31.4138,148.5,148.4,26.7]
[1723392807485,4.7135,148.51,148.4,26.7]
[1723392807702,31.4138,148.5,148.45,4.7151]
[1723392808715,31.4138,148.5,148.46,4.715]
[1723392808888,11.7783,148.58,148.42,26.82549]
[1723392809086,26.7,148.55,148.48,4.7141]
[1723392809906,4.7128,148.53,148.48,4.7141]
[1723392810087,26.7,148.55,148.44,0.12549]
[1723392810286,26.7,148.55,148.44,45.25098]
[1723392810486,26.7,148.55,148.45,20.0]
[1723392810707,26.7,148.55,148.46,45.0]
[1723392810914,26.7,148.55,148.51,4.7132]
[1723392811708,31.4122,148.55,148.51,4.7132]
[1723392812312,26.7,148.55,148.51,4.7132]
[1723392812618,4.7119,148.56,148.52,4.7131]
[1723392813108,4.7119,148.56,148.47,20.0]
[1723392813415,4.7122,148.55,148.51,4.7134]
[1723392814015,26.7,148.57,148.5,4.7137]
[1723392814204,26.7,148.55,148.49,4.7141]
[1723392814400,0.37647,148.54,148.45,20.0]
[1723392814707,4.7129,148.53,148.48,4.7141]
[1723392815723,6.5108,148.5,148.44,4.7153]
[1723392816019,46.7,148.49,148.46,4.715]
[1723392816200,26.7,148.51,148.49,4.7141]
[1723392816394,11.2236,148.54,148.4,26.7]
[1723392816395,6.5108,148.54,148.43,6.5845]
[1723392816594,26.7,148.55,148.44,26.7]
[1723392817009,4.7127,148.54,148.49,4.7138]
[1723392817524,4.7127,148.54,148.5,4.7137]
[1723392818231,4.7125,148.54,148.5,4.7137]
[1723392818517,4.7126,148.54,148.45,20.0]
[1723392818718,24.7122,148.55,148.46,45.12549]
[1723392818899,24.7122,148.55,148.46,45.25098]
[1723392819101,20.0,148.55,148.5,4.7137]
[1723392819336,24.7119,148.56,148.52,4.7131]
[1723392819516,4.7119,148.56,148.52,4.7131]
[1723392819694,4.7119,148.56,148.51,4.7134]
[1723392819897,4.7122,148.55,148.47,36.63189]
[1723392820097,26.7,148.57,148.49,6.5845]
[1723392820314,24.28968553,148.65,148.54,0.12549]
[1723392820315,1.17214395,148.64,148.54,0.12549]
[1723392820503,42.8966,148.65,148.54,0.37647]
[1723392820704,42.8966,148.65,148.54,20.37647]
[1723392820935,26.7,148.63,148.55,0.12549]
[1723392821102,4.71,148.62,148.57,4.7115]
[1723392824725,26.7,148.61,148.58,4.7112]
[1723392825711,26.7,148.61,148.57,4.7114]
[1723392826439,31.4103,148.61,148.56,4.7118]
[1723392826737,26.7,148.61,148.57,4.7115]
[1723392827115,26.7,148.61,148.58,4.7112]
[1723392827316,4.71,148.62,148.58,4.7112]
[1723392827825,26.7,148.63,148.55,0.12549]
[1723392828136,4.7094,148.64,148.6,4.7103]
[1723392829023,4.7094,148.64,148.59,4.7108]
[1723392829229,4.7097,148.63,148.59,4.7108]
[1723392829737,4.7094,148.64,148.6,4.7105]
[1723392832730,4.7097,148.63,148.59,4.7108]
[1723392833142,4.7094,148.64,148.59,4.7108]
[1723392833449,31.4091,148.65,148.6,45.0]
[1723392833853,26.7,148.65,148.6,45.0]
[1723392834155,4.7087,148.66,148.61,4.7102]
[1723392834336,24.7087,148.66,148.62,4.7099]
[1723392834645,4.7087,148.66,148.62,4.7099]
[1723392838154,26.0287,148.66,148.62,4.7099]
[1723392839339,21.32,148.66,148.6,45.0]
[1723392839668,4.7091,148.65,148.6,45.0]
[1723392840760,4.7091,148.65,148.61,4.7101]
[1723392840961,21.32,148.66,148.62,4.7099]
[1723392841170,26.0288,148.66,148.62,4.7099]
[1723392842056,4.7085,148.67,148.63,4.7096]
[1723392842445,21.32,148.66,148.6,45.0]
[1723392842772,4.7091,148.65,148.6,49.7105]
[1723392842938,21.32,148.64,148.57,6.209]
[1723392843354,21.32,148.64,148.6,4.7105]
[1723392843674,21.32,148.64,148.57,6.209]
[1723392843675,26.0294,148.64,148.57,6.209]
[1723392843844,26.0294,148.64,148.59,4.7107]
[1723392844038,26.0296,148.64,148.59,4.7107]
[1723392844239,21.32,148.64,148.58,4.7111]
[1723392844435,4.7097,148.63,148.57,6.209]
[1723392844694,4.7097,148.63,148.59,4.7108]
[1723392844867,26.0294,148.64,148.6,4.7106]
[1723392845165,26.0294,148.64,148.58,45.0]
[1723392845369,4.7097,148.63,148.58,49.7112]
[1723392845673,4.7097,148.63,148.59,4.7108]
[1723392846858,11.7691,148.7,148.6,0.25098]
[1723392847061,21.32,148.68,148.61,4.71]
[1723392847248,21.32,148.66,148.61,4.71]
[1723392847573,21.32,148.66,148.6,4.7105]
[1723392847574,4.7091,148.65,148.6,4.7105]
[1723392848245,4.7096,148.63,148.58,45.0]
[1723392848641,26.0294,148.64,148.59,4.7107]
[1723392848845,26.0294,148.64,148.6,4.7106]
[1723392849271,21.32,148.64,148.6,4.7106]
[1723392850462,26.0294,148.64,148.6,4.7106]
[1723392850672,21.32,148.64,148.6,4.7106]
[1723392851357,21.32,148.64,148.61,45.0]
[1723392851563,26.0293,148.64,148.61,45.0]
[1723392851763,4.7098,148.63,148.59,4.7108]
[1723392851959,4.7098,148.63,148.6,45.0]
[1723392853766,4.7097,148.63,148.55,37.9024]
[1723392853967,21.32,148.64,148.55,16.5824]
[1723392854169,4.7104,148.61,148.55,16.5824]
[1723392854971,26.0296,148.64,148.59,4.7108]
[1723392855678,26.0296,148.64,148.6,45.0]
[1723392856971,4.7097,148.63,148.6,45.0]
[1723392857882,26.0294,148.64,148.6,45.0]
[1723392858598,15.1001,148.69,148.6,45.0]
[1723392858878,4.7088,148.66,148.62,4.7099]
[1723392859080,21.32,148.66,148.6,45.0]
[1723392859289,4.7094,148.64,148.6,49.7105]
[1723392859651,4.7098,148.63,148.6,45.0]
[1723392859855,21.32,148.66,148.61,1.34585336]
[1723392860065,21.32,148.66,148.62,4.7099]
[1723392860265,21.32,148.66,148.6,49.7103]
[1723392860491,4.7094,148.64,148.6,49.7103]
[1723392860688,4.7091,148.65,148.6,49.7103]
[1723392860876,26.0289,148.66,148.61,4.7102]
[1723392861074,4.7091,148.65,148.62,45.0]
[1723392861279,4.7091,148.65,148.6,49.7103]
[1723392861585,4.7093,148.64,148.6,49.7103]
[1723392861796,4.709,148.65,148.6,49.7103]
[1723392862081,4.709,148.65,148.61,4.7102]
[1723392862286,26.0287,148.66,148.62,45.0]
[1723392863467,21.32,148.66,148.62,45.0]